Cogmind - Beta 14 @@@ ROGUE MODE // 2024.12.17 @ 12:26:39 Player: Tereza Result: Destroyed by H-61 Shepherd with Heavy Assault Cannon Performance ------------- Evolutions (4) 2000 Regions Visited (10) 2000 Robots Destroyed (177) 885 Value Destroyed (8149) 8149 Prototype IDs (27) 540 Alien Tech Used (0) 0 Bonus (4115) 4115 TOTAL SCORE: 17689 Bonus ------- High Alert Combat Kills 2206 Follower Combat Kills 374 Entered Garrisons 400 Used RIF Installer 1000 Aligned with FarCom 300 Friendly Fire -165 Cogmind --------- Core Integrity 0/850 Matter 237/300 Energy 301/315 System Corruption 8% Temperature Cool (7) Movement Treading (240) Ox1 Location -6/Factory Parts ------- > --- POWER (1) -------- Neutrino Core > --- PROPULSION (5) --- Light Treads Improved Heavy Treads Improved Heavy Treads > --- UTILITY (7) ------ Advanced Cooling System Cargo Storage Unit Advanced Targeting Computer Hacking Suite System Shield Relay Coupler [Behemoth] (2) > --- WEAPON (2) ------- Matter Neutralizer Nova Cannon > --- INVENTORY (30) --- Reinforced Deuterium Engine Armored Heavy Treads Advanced Heat Sink Advanced Heat Sink High-capacity Matter Pod (200) Advanced Signal Interpreter Transport Network Coupler Heavy Reflective Plating Graphene Brace Improved Shield Generator Hacking Suite Hacking Suite Relay Coupler [NC] (42) Relay Coupler [Swarmer] (55) Relay Coupler [Brawler] (35) Relay Coupler [Sentry] (41) Relay Coupler [Hunter] (28) Heavy Beamcaster Quantum Rifle YOLO Cannon Flak Gun Helical Railgun Shock Bomb Launcher Improved Datajack Remote Datajack Plasma Cutter Peak State ------------ > --- POWER ------------ Neutrino Core > --- PROPULSION ------- Advanced Treads Armored Heavy Treads Improved Carbon-fiber Leg Flexi-carbon Leg > --- UTILITY ---------- Advanced Cooling System Cargo Storage Unit Improved Heavy Armor Plating Graphene Brace Hacking Suite > --- WEAPON ----------- Beamcaster Quantum Rifle > --- INVENTORY -------- Improved Deuterium Engine Advanced Heat Sink Advanced Cooling System High-capacity Matter Pod Sensor Array Advanced Targeting Computer Heavy Armor Plating Improved Medium Armor Plating Improved Shield Generator Hacking Suite System Shield Relay Coupler [Grunt] Relay Coupler [Brawler] Relay Coupler [Sentry] Relay Coupler [Specialist] Relay Coupler [Behemoth] Heavy Laser YOLO Cannon Autogun Autogun High-powered Shotgun Flak Gun Light Cannon Shock Bomb Launcher Missile Launcher Heavy Rocket Launcher Remote Datajack Plasma Cutter [Rating: 86] Favorites ----------- Power Neutrino Core Engine Light Ion Engine Power Core Neutrino Core Reactor Improved Quantum Reactor Propulsion Wheel Treads Light Treads Leg Improved Carbon-fiber Leg Wheel Wheel Utility Cargo Storage Unit Device Graphene Brace Storage Cargo Storage Unit Processor Advanced Targeting Computer Hackware Hacking Suite Protection Hardened Heavy Armor Plating Weapon Light Cannon Energy Gun Plasma Rifle Energy Cannon Cooled Plasma Cannon Ballistic Gun High-powered Shotgun Ballistic Cannon Light Cannon Launcher Heavy Rocket Launcher Special Weapon Remote Datajack Build | -11 -10 -10 -10 -9 -8 -7 -7 -6 -6 -6 ------- Run | Yrd Mat Min Exi Min Mat Fac Gar Fac Gar Fac Slots Evolved 8 | . . . . . 4 2 . 2 . . Power . | . . . . . . . . . . . Propulsion 3 | . . . . . 1 1 . 1 . . Utility 5 | . . . . . 3 1 . 1 . . Weapon . | . . . . . . . . . . . Parts Attached 156 | 6 7 1 . . 35 10 35 11 49 2 Power 14 | 1 . 1 . . 2 1 4 . 5 . Engine 4 | 1 . 1 . . . . . . 2 . Core 9 | . . . . . 2 1 4 . 2 . Reactor 1 | . . . . . . . . . 1 . Propulsion 45 | 2 1 . . . 13 4 11 3 11 . Treads 16 | 2 . . . . 3 . 4 . 7 . Leg 7 | . . . . . . . 4 1 2 . Wheel 22 | . 1 . . . 10 4 3 2 2 . Hover . | . . . . . . . . . . . Flight . | . . . . . . . . . . . Utility 36 | 1 3 . . . 9 3 6 2 12 . Device 9 | . . . . . 2 . 1 2 4 . Storage 5 | 1 2 . . . 1 . . . 1 . Processor 2 | . 1 . . . . . . . 1 . Hackware 6 | . . . . . 1 1 . . 4 . Protection 14 | . . . . . 5 2 5 . 2 . Artifact . | . . . . . . . . . . . Weapon 61 | 2 3 . . . 11 2 14 6 21 2 Energy Gun 16 | 1 1 . . . . 1 6 2 5 . Energy Cannon 7 | . . . . . 1 . 1 1 2 2 Ballistic Gun 12 | 1 1 . . . 5 1 1 . 3 . Ballistic Cannon 9 | . 1 . . . 3 . 3 . 2 . Launcher 11 | . . . . . 2 . 3 3 3 . Special Weapon 6 | . . . . . . . . . 6 . Impact Weapon . | . . . . . . . . . . . Slashing Weapon . | . . . . . . . . . . . Piercing Weapon . | . . . . . . . . . . . Special Melee Weapon . | . . . . . . . . . . . Unidentified Prototypes 4 | . . . . . . . . 1 3 . Parts Lost 67 | . 3 . . . 25 4 16 1 18 . Power 7 | . 1 . . . 3 . 1 . 2 . Propulsion 31 | . 1 . . . 12 2 8 1 7 . Utility 15 | . . . . . 5 1 4 . 5 . Weapon 14 | . 1 . . . 5 1 3 . 4 . Highest Loss Streak 8 | . 2 . . . 6 2 8 1 6 . To Critical Strikes . | . . . . . . . . . . . Average Slot Usage (%) 79 | . 95 100 100 100 71 82 80 76 74 80 Engine 2 | . 12 14 14 14 3 . . . 1 . Core 4 | . . . . . 2 6 6 6 3 6 Treads 10 | . 26 14 14 14 4 . 13 11 9 20 Leg 4 | . . . . . . . 12 4 2 . Wheel 8 | . 1 14 14 14 14 29 1 6 7 . Device 6 | . . . . . 5 4 4 11 9 6 Storage 7 | . 14 14 14 14 9 7 7 6 5 6 Processor 2 | . 11 14 14 14 2 . . . 3 6 Hackware 9 | . . . . . 8 8 9 6 13 20 Protection 4 | . . . . . 5 7 7 6 1 . Energy Gun 5 | . 6 14 14 14 4 5 6 8 2 . Ballistic Gun 5 | . 16 . . . 3 7 5 . 4 4 Ballistic Cannon 2 | . 5 14 14 14 8 1 1 . . . Peak Build Rating 86 | 6 8 9 11 11 32 42 73 86 83 86 Average Rating 48 | 3 7 9 10 11 19 39 49 79 66 82 On Entrance 30 | . 6 8 9 11 11 24 42 73 73 82 Naked Turns . | . . . . . . . . . . . Heaviest Build 187 | 12 27 29 29 29 156 175 185 187 187 178 Greatest Support 170 | 40 40 10 10 10 36 40 82 82 170 170 Greatest Overweight (x) 57 | . 2 2 2 2 51 5 11 7 57 1 Average Overweight (x) 3 | . . 2 2 2 7 4 3 5 4 . Largest Inventory Capacity 30 | 8 15 15 15 15 30 30 30 30 30 30 Average Capacity 28 | 7 13 15 15 15 30 30 30 30 29 30 Most Carried 30 | 6 15 14 15 15 28 30 30 30 30 30 Average Carried 26 | 4 12 14 14 15 20 29 28 29 29 29 Final Capacity 30 | 8 15 15 15 15 30 30 30 30 30 30 Final Carried 30 | 4 15 14 15 15 28 30 29 30 30 29 Class Distribution -------------------- 36% | Hauler-Mutant 30% | Bothacker-Mutant 23% | Scavenger-Mutant 10% | Mutant Dominant Class ---------------- Mutant | -10/Materials Mutant | -10/Mines Mutant | -10/Exiles Mutant | -9/Mines Hauler-Mutant | -8/Materials Scavenger-Mutant | -7/Factory Hauler-Mutant | -7/Garrison Bothacker-Mutant | -6/Factory Bothacker-Mutant | -6/Garrison Scavenger-Mutant | -6/Factory Resources | -11 -10 -10 -10 -9 -8 -7 -7 -6 -6 -6 ----------- Run | Yrd Mat Min Exi Min Mat Fac Gar Fac Gar Fac Matter Collected 4843 | 226 216 . 56 64 838 777 982 152 1454 78 Remotely . | . . . . . . . . . . . Salvage Created 6268 | . 613 . . 81 1380 940 924 518 1775 37 Parts 333 | . 52 . . 5 84 57 38 26 67 4 Haulers Intercepted 5 | . 2 . . . 2 1 . . . . Recyclers Shooed 5 | . . . . . 1 3 . 1 . . Parts Field Recycled . | . . . . . . . . . . . Retrieved Matter . | . . . . . . . . . . . Parts Self-Destructed . | . . . . . . . . . . . Prevented . | . . . . . . . . . . . Kills | -11 -10 -10 -10 -9 -8 -7 -7 -6 -6 -6 ------- Run | Yrd Mat Min Exi Min Mat Fac Gar Fac Gar Fac Combat Hostiles Destroyed 140 | . 16 . . 2 34 15 29 15 28 1 Guns 57 | . 12 . . 1 8 14 11 4 7 . Cannons 40 | . 4 . . 1 15 1 8 . 10 1 AOE 38 | . . . . . 11 . 8 11 8 . Classes Destroyed 17 | . 6 . . . 5 1 1 3 1 . Worker 9 | . 1 . . . 3 4 . 1 . . Builder 8 | . . . . . 6 1 . 1 . . Tunneler 1 | . . . . . . . . 1 . . Hauler 5 | . 2 . . . 2 1 . . . . Recycler 4 | . . . . . 2 2 . . . . Operator 5 | . 1 . . . . 2 1 1 . . Watcher 4 | . 3 . . . 1 . . . . . Swarmer 31 | . 8 . . . 4 . 7 3 9 . Cutter 3 | . . . . . . . 3 . . . Grunt 60 | . 8 . . 2 21 8 12 6 3 . Brawler 4 | . . . . . . . . 1 3 . Sentry 21 | . . . . . 6 3 4 2 6 . Specialist 5 | . . . . . 2 . 3 . . . Hunter 3 | . . . . . . . . 2 1 . Programmer 10 | . . . . . . 4 . 1 4 1 Heavy 1 | . . . . . 1 . . . . . Executioner 2 | . . . . . . . . . 2 . Infiltrator 1 | . . . . . . . 1 . . . Best Kill Streak 17 | . 4 . . 2 17 5 5 5 5 1 Combat Bots Only 11 | . 3 . . 2 11 3 5 4 5 1 Max Kills in Single Turn 3 | . 1 . . 1 3 2 3 3 3 1 Gunslinging . | . . . . . . . . . . . Exploded 3 | . . . . . 2 . 2 2 3 . Melee . | . . . . . . . . . . . Uniques/NPCs Destroyed . | . . . . . . . . . . . Combat | -11 -10 -10 -10 -9 -8 -7 -7 -6 -6 -6 -------- Run | Yrd Mat Min Exi Min Mat Fac Gar Fac Gar Fac Hostile Shots Fired 1421 | . 66 . . 2 253 167 376 126 425 6 Missed 496 | . 16 . . . 83 59 119 59 157 3 Damage Taken 13156 | . 597 . . 23 2712 1176 3436 1121 4005 86 Core 2017 | . 104 . . . 420 135 496 136 669 57 Absorbed by Shields . | . . . . . . . . . . . Redirected to Shielding 107 | . . . . . 107 . . . . . Ignored by Resistances 120 | . . . . . 120 . . . . . Core Remaining (%) 47 | 100 . . . 58 23 . 9 . . . Volleys Fired 552 | . 43 . . 2 112 71 142 37 137 8 Largest 2 | . 2 . . 2 2 2 2 2 2 2 Hottest 218 | . 100 . . 100 100 97 108 169 156 218 Shots Fired 984 | . 86 . . 4 218 142 225 73 226 10 Gun 641 | . 68 . . 2 114 127 150 41 134 5 Cannon 296 | . 18 . . 2 94 15 66 21 76 4 Launcher 41 | . . . . . 10 . 9 11 11 . Special 6 | . . . . . . . . . 5 1 Kinetic 489 | . 69 . . 2 146 86 112 . 69 5 Thermal 432 | . 1 . . 2 62 56 104 62 141 4 Explosive 39 | . . . . . 10 . 9 11 9 . Electromagnetic 18 | . 16 . . . . . . . 2 . Robot Hit Streak 19 | . 14 . . 10 14 9 14 8 19 5 Robot Miss Streak 8 | . 4 . . . 3 8 8 4 5 . Penetration Max 1 | . . . . . . . . . 1 . Secondary Targets 3 | . 1 . . . . 1 . 1 . . Max Gunslinging Chain 1 | . 1 . . . . 1 . 1 . . Shots Hit Robots 661 | . 59 . . 3 149 109 128 49 161 3 Core Hits 402 | . 30 . . 3 82 98 70 36 82 1 Critical Kills 5 | . . . . . . . 2 . 3 . Critical Parts Destroyed . | . . . . . . . . . . . Critical Strikes 28 | . 3 . . . 6 1 7 1 10 . Burn 11 | . . . . . 2 1 3 1 4 . Meltdown 4 | . . . . . . . 1 . 3 . Destroy 1 | . . . . . . . 1 . . . Blast 12 | . 3 . . . 4 . 2 . 3 . Melee Attacks . | . . . . . . . . . . . Impact . | . . . . . . . . . . . Slashing . | . . . . . . . . . . . Piercing . | . . . . . . . . . . . Sneak Attacks . | . . . . . . . . . . . Combat Hostiles . | . . . . . . . . . . . Follow-up Attacks . | . . . . . . . . . . . Damage Inflicted 19033 | . 883 . . 48 4683 2085 3578 2341 5316 99 Guns 8667 | . 583 . . 33 1319 1927 1584 677 2544 . Cannons 4761 | . 208 . . 15 1476 143 895 353 1572 99 Explosions 5590 | . 92 . . . 1888 . 1099 1311 1200 . Melee . | . . . . . . . . . . . Ramming 15 | . . . . . . 15 . . . . Kinetic 6290 | . 606 . . 15 1897 1280 1277 . 1215 . Thermal 7761 | . 110 . . 33 1260 790 1454 1030 2985 99 Explosive 4792 | . . . . . 1526 . 847 1311 1108 . Electromagnetic 175 | . 167 . . . . . . . 8 . Impact . | . . . . . . . . . . . Slashing . | . . . . . . . . . . . Piercing . | . . . . . . . . . . . Highest Corruption 8 | . . . . . . 2 2 . 8 8 Average Corruption 3 | . . . . . . 1 2 . 5 8 Corruption Purged . | . . . . . . . . . . . Corruption Blocked . | . . . . . . . . . . . Effects 192 | . . . . . . 7 54 . 105 26 Message Errors 38 | . . . . . . 1 10 . 25 2 Matter Fused 51 | . . . . . . 2 17 . 26 6 Heat Flow Errors 22 | . . . . . . 2 6 . 8 6 Energy Discharges 27 | . . . . . . 2 5 . 16 4 Parts Rejected 2 | . . . . . . . 2 . . . Parts Fused 4 | . . . . . . . 2 . 1 1 Data Loss (minor) 24 | . . . . . . . 6 . 14 4 Data Loss (major) 9 | . . . . . . . 2 . 6 1 Misfires 9 | . . . . . . . 3 . 5 1 Alerts 3 | . . . . . . . 1 . 1 1 Weapon Failures 3 | . . . . . . . . . 3 . Overload Shots . | . . . . . . . . . . . Overflow Damage 383 | . . . . . 106 . 52 74 151 . Projectiles 223 | . . . . . 13 . 28 31 151 . Explosions 160 | . . . . . 93 . 24 43 . . Melee . | . . . . . . . . . . . Knockbacks 41 | . 1 . . . 14 . 17 . 9 . Impact . | . . . . . . . . . . . Kinetic 32 | . 1 . . . 9 . 13 . 9 . Secondary 9 | . . . . . 5 . 4 . . . Self-Inflicted Damage 596 | . 39 . . . . 7 197 206 147 . Shots 14 | . 1 . . . . . 4 5 4 . Rammed 2 | . . . . . . 2 . . . . Targets Rammed 2 | . . . . . . 2 . . . . Kicked . | . . . . . . . . . . . Crushed . | . . . . . . . . . . . Highest Temperature 533 | . 40 . . 90 303 270 457 296 533 195 Average Temperature 102 | . 13 . . 48 87 59 136 92 125 66 Received Heat Transfer 3132 | . 180 . . 12 990 345 834 198 573 . Effects 19 | . . . . . . . 10 1 8 . Energy Bleed 6 | . . . . . . . 4 1 1 . Interference 2 | . . . . . . . . . 2 . Matter Decay 1 | . . . . . . . . . 1 . Short Circuit 2 | . . . . . . . 2 . . . Damage (minor) 1 | . . . . . . . 1 . . . Damage (major) 7 | . . . . . . . 3 . 4 . Siege Activations . | . . . . . . . . . . . Robots Corrupted 1 | . . . . . . . 1 . . . Combat Hostiles 1 | . . . . . . . 1 . . . Parts Fried . | . . . . . . . . . . . Impact Corruptions 1 | . . . . . . . 1 . . . Robots Melted 4 | . . . . . . . 1 . 3 . Combat Hostiles 4 | . . . . . . . 1 . 3 . Parts Melted 17 | . . . . . 1 2 3 3 8 . Heat Transferred 13032 | . 237 . . 74 2194 1480 2630 1623 4720 74 Parts Sabotaged . | . . . . . . . . . . . Parts Stolen . | . . . . . . . . . . . Parts Stripped . | . . . . . . . . . . . Power Chain Reactions 1 | . 1 . . . . . . . . . Alert | -11 -10 -10 -10 -9 -8 -7 -7 -6 -6 -6 ------- Run | Yrd Mat Min Exi Min Mat Fac Gar Fac Gar Fac Peak Influence 3496 | . 307 64 . 50 516 365 2558 1523 3496 1941 Initial 1835 | . . 64 . . 19 203 186 1342 1066 1835 Average 1207 | . 165 64 . 49 232 250 1358 1317 2148 1875 Maximum Alert Level 5 | . 1 . . . 2 1 5 4 5 5 Low Security (%) 15 | 100 68 100 . 100 54 11 1 . . . Level 1 16 | . 31 . . . 14 88 3 . . . Level 2 8 | . . . . . 31 . 17 . . . Level 3 3 | . . . . . . . 11 . 2 . Level 4 20 | . . . . . . . 29 100 22 . Level 5 35 | . . . . . . . 36 . 75 100 High Security . | . . . . . . . . . . . Max Security . | . . . . . . . . . . . Squads Dispatched 25 | . 2 . . . 8 6 . 5 . 4 Investigation 6 | . 2 . . . 3 1 . . . . Extermination 6 | . . . . . . 3 . 2 . 1 Reinforcement 8 | . . . . . 5 2 . 1 . . Assault 3 | . . . . . . . . . . 3 Garrison 2 | . . . . . . . . 2 . . Intercept . | . . . . . . . . . . . Searches Triggered . | . . . . . . . . . . . Construction Impeded 2 | . . . . . 2 . . . . . Haulers Reinforced . | . . . . . . . . . . . Active Scanning Responses . | . . . . . . . . . . . Cargo Convoy Interrupts . | . . . . . . . . . . . Stealth | -11 -10 -10 -10 -9 -8 -7 -7 -6 -6 -6 --------- Run | Yrd Mat Min Exi Min Mat Fac Gar Fac Gar Fac Distress Signals 2 | . 1 . . . . . . 1 . . Communications Jammed . | . . . . . . . . . . . Distress Signals . | . . . . . . . . . . . Times Spotted 201 | . 22 . . 1 46 27 47 19 34 5 Peak Tracking Total 9 | . 3 . . 1 9 4 7 5 8 5 Tactical Retreats 16 | . 2 . . . 3 2 7 1 . 1 Traps | -11 -10 -10 -10 -9 -8 -7 -7 -6 -6 -6 ------- Run | Yrd Mat Min Exi Min Mat Fac Gar Fac Gar Fac Traps Triggered 21 | . 3 . . . 3 4 5 1 5 . Indirectly . | . . . . . . . . . . . Trap Hack Attempts . | . . . . . . . . . . . Triggered . | . . . . . . . . . . . Disarmed . | . . . . . . . . . . . Reprogrammed . | . . . . . . . . . . . Reused . | . . . . . . . . . . . Traps Extracted . | . . . . . . . . . . . Installed . | . . . . . . . . . . . Triggered . | . . . . . . . . . . . Machines | -11 -10 -10 -10 -9 -8 -7 -7 -6 -6 -6 ---------- Run | Yrd Mat Min Exi Min Mat Fac Gar Fac Gar Fac Machines Disabled 28 | . 1 . . . 1 . 8 2 14 2 Max in Single Turn 2 | . 1 . . . 1 . 2 1 1 1 Garrison Access 1 | . . . . . . . . . . 1 Garrison Relay 6 | . . . . . . . 2 . 4 . Phase Generator 2 | . . . . . . . 1 . 1 . Machines Repaired . | . . . . . . . . . . . Machines Dismantled 3 | . . . . . . . . . 3 . Machines Sabotaged . | . . . . . . . . . . . Overloaded Fab Kills . | . . . . . . . . . . . Hacking | -11 -10 -10 -10 -9 -8 -7 -7 -6 -6 -6 --------- Run | Yrd Mat Min Exi Min Mat Fac Gar Fac Gar Fac Machines Accessed 30 | . 4 . 2 . 4 10 3 3 2 2 Terminals 20 | . 4 . . . 4 5 3 1 2 1 Fabricators 4 | . . . . . . 3 . 1 . . Repair Stations . | . . . . . . . . . . . Recycling Units . | . . . . . . . . . . . Scanalyzers 1 | . . . . . . 1 . . . . Garrison Access 3 | . . . . . . 1 . 1 . 1 Total Hacks 60 | . 9 . 5 . 9 20 8 3 4 2 Successful 31 | . 4 . 5 . 2 14 1 2 2 1 Failed 29 | . 5 . . . 7 6 7 1 2 1 Catastrophic 8 | . 1 . . . 2 2 1 1 . 1 Database Lockouts . | . . . . . . . . . . . Manual 20 | . 7 . 1 . 3 6 . 1 1 1 Terminals 44 | . 9 . . . 9 12 8 1 4 1 Fabricators 6 | . . . . . . 5 . 1 . . Repair Stations . | . . . . . . . . . . . Recycling Units . | . . . . . . . . . . . Scanalyzers 2 | . . . . . . 2 . . . . Garrison Access 3 | . . . . . . 1 . 1 . 1 Terminal Hacks 20 | . 4 . 5 . 2 6 1 . 2 . Record 5 | . . . 4 . . 1 . . . . Robot Analysis 5 | . 3 . . . 2 . . . . . Branch Access Points 1 | . . . . . . 1 . . . . Emergency Access Points 2 | . . . . . . . 1 . 1 . Garrison Index 1 | . . . . . . 1 . . . . Alert Level 1 | . 1 . . . . . . . . . Locate Traps 1 | . . . . . . 1 . . . . Registered Components 1 | . . . . . . 1 . . . . Zone Layout 1 | . . . . . . 1 . . . . Security Stations 1 | . . . . . . . . . 1 . Derelict Proto ID Bank 1 | . . . 1 . . . . . . . Fabricator Hacks 5 | . . . . . . 4 . 1 . . Network Status 2 | . . . . . . 2 . . . . Load Schematic 2 | . . . . . . 1 . 1 . . Build 1 | . . . . . . 1 . . . . Repair Station Hacks . | . . . . . . . . . . . Recycling Unit Hacks . | . . . . . . . . . . . Scanalyzer 2 | . . . . . . 2 . . . . Insert Component 1 | . . . . . . 1 . . . . Analyze 1 | . . . . . . 1 . . . . Garrison Access Hacks 3 | . . . . . . 1 . 1 . 1 Unlock Access 2 | . . . . . . 1 . 1 . . Seal Access 1 | . . . . . . . . . . 1 Unauthorized Hacks 1 | . . . . . . 1 . . . . Terminals 1 | . . . . . . 1 . . . . Botnet 1 | . . . . . . 1 . . . . Fabricators . | . . . . . . . . . . . Repair Stations . | . . . . . . . . . . . Recycling Units . | . . . . . . . . . . . Scanalyzers . | . . . . . . . . . . . Garrison Access . | . . . . . . . . . . . Data Cores Recovered 2 | . 1 . . . . . . . . 1 Used . | . . . . . . . . . . . Hacking Detections 23 | . 4 . . . 3 8 3 2 2 1 Full Trace Events 5 | . . . . . 2 1 2 . . . Feedback Events . | . . . . . . . . . . . Feedback Blocked . | . . . . . . . . . . . Robot Schematics Acquired . | . . . . . . . . . . . Robots Built . | . . . . . . . . . . . Authchips . | . . . . . . . . . . . Time . | . . . . . . . . . . . Total Robot Build Rating . | . . . . . . . . . . . Part Schematics Acquired 1 | . . . . . . 1 . . . . Parts Built 1 | . . . . . . 1 . . . . Authchips . | . . . . . . . . . . . Time 28 | . . . . . . 28 . . . . Total Part Build Rating 4 | . . . . . . 4 . . . . Parts Repaired . | . . . . . . . . . . . Time . | . . . . . . . . . . . Parts Recycled . | . . . . . . . . . . . Recycled Matter . | . . . . . . . . . . . Retrieved Matter . | . . . . . . . . . . . Retrieved Components . | . . . . . . . . . . . Parts Scanalyzed 1 | . . . . . . 1 . . . . Part Schematics Acquired 1 | . . . . . . 1 . . . . Parts Damaged . | . . . . . . . . . . . Bothacking | -11 -10 -10 -10 -9 -8 -7 -7 -6 -6 -6 ------------ Run | Yrd Mat Min Exi Min Mat Fac Gar Fac Gar Fac Used RIF Installer 2 | . . . . . . . 1 . 1 . Coupler Efficiency 1 | . . . . . . . . . 1 . Robots Hacked 3 | . . . . . . . . . 3 . Non-combat . | . . . . . . . . . . . Combat 3 | . . . . . . . . . 3 . Robot Hacks Applied 3 | . . . . . . . . . 3 . formatsys_high 3 | . . . . . . . . . 3 . Relay Couplers Released 22 | . . . . . . . 9 . 13 . Machine Destruction 22 | . . . . . . . 9 . 13 . Attached 3 | . . . . . . . . . 3 . Fabnet Peak Effective % . | . . . . . . . . . . . Robots Rewired 2 | . . . . . . . . . 2 . Allies Hacked . | . . . . . . . . . . . Hacks Repelled . | . . . . . . . . . . . Allies | -11 -10 -10 -10 -9 -8 -7 -7 -6 -6 -6 -------- Run | Yrd Mat Min Exi Min Mat Fac Gar Fac Gar Fac Total Allies 9 | . . . . . . . 2 . 7 . Largest Group 3 | . . . . . . . 2 1 3 2 Highest-Rated Group 286 | . . . . . . . 190 95 286 201 Highest-Rated Ally 116 | . . . . . . . 95 95 116 116 Total Orders . | . . . . . . . . . . . Ally Attacks 42 | . . . . . . . 11 4 9 18 Total Damage 1970 | . . . . . . . 596 113 246 1015 Kills 14 | . . . . . . . 4 1 2 7 Allies Corrupted . | . . . . . . . . . . . Allies Melted . | . . . . . . . . . . . Intel | -11 -10 -10 -10 -9 -8 -7 -7 -6 -6 -6 ------- Run | Yrd Mat Min Exi Min Mat Fac Gar Fac Gar Fac Robot Analysis Total 5 | . 3 . . . 2 . . . . . Derelict Logs Recovered . | . . . . . . . . . . . Drone Launches . | . . . . . . . . . . . Drone Recoveries . | . . . . . . . . . . . Exploration | -11 -10 -10 -10 -9 -8 -7 -7 -6 -6 -6 ------------- Run | Yrd Mat Min Exi Min Mat Fac Gar Fac Gar Fac Turns Passed 14341 | 63 1043 42 244 124 1831 1772 3546 1007 3918 751 Spaces Moved 5458 | 37 567 37 220 107 619 1007 840 355 1239 430 Core 41 | 11 . . . . 8 . . . 22 . Treads 2075 | 26 483 . . . 1 . 461 140 534 430 Legs 296 | . . . . . . . 294 . 2 . Wheels 3046 | . 84 37 220 107 610 1007 85 215 681 . Hover . | . . . . . . . . . . . Flight . | . . . . . . . . . . . Fastest Speed 50 | 50 110 110 110 110 146 140 140 195 115 160 Average Speed 217 | 127 152 110 110 110 223 140 364 243 251 163 Slowest Speed 2900 | 160 240 110 110 110 2600 155 540 317 2900 240 Overloaded Moves . | . . . . . . . . . . . Propulsion Burnouts . | . . . . . . . . . . . Robots Hopped . | . . . . . . . . . . . Cave-ins Triggered . | . . . . . . . . . . . Exploration Rate (%) 42 | 3 90 12 59 25 49 26 96 10 90 11 Regions Visited 10 Branch Regions 3 Pre-discovered Areas 1 | . . . 1 . . . . . . . Known Exits Taken 2 | . . . . . . 1 . 1 . . Unknown Exits Taken 6 | 1 1 1 1 1 1 . . . . . Scrap Searched 1 | . . . . 1 . . . . . . Spaces Dug 2 | . . . . . . . . . . 2 Terrain Destroyed 383 | . 5 . . . 53 . 163 92 68 2 Melee . | . . . . . . . . . . . Projectile 18 | . . . . . . . 2 10 4 2 AOE 365 | . 5 . . . 53 . 161 82 64 . Terrain Rammed . | . . . . . . . . . . . Walls Destroyed . | . . . . . . . . . . . Machines Disabled . | . . . . . . . . . . . Actions | -11 -10 -10 -10 -9 -8 -7 -7 -6 -6 -6 --------- Run | Yrd Mat Min Exi Min Mat Fac Gar Fac Gar Fac Total 6965 | 52 667 38 223 110 839 1231 1109 428 1790 478 Wait 393 | . 22 1 . . 39 70 37 . 197 27 Move 5448 | 36 566 36 219 106 618 1007 838 355 1237 430 Hop . | . . . . . . . . . . . Pick Up 190 | 8 18 . 2 1 32 20 29 11 64 5 Fast Attach 44 | 4 4 . . . 11 4 6 4 11 . Attach 72 | 2 2 1 . . 20 5 20 1 20 1 Detach 12 | . 1 . . . 2 1 2 1 4 1 Swap 40 | . 1 . . . 4 1 9 6 18 1 Drop 102 | 2 10 . 2 1 1 18 18 11 34 5 Fire 552 | . 43 . . 2 112 71 142 37 137 8 Melee . | . . . . . . . . . . . Ram 2 | . . . . . . 2 . . . . Kick . | . . . . . . . . . . . Crush . | . . . . . . . . . . . Escape Stasis 76 | . . . . . . 32 8 2 34 . Rewire 14 | . . . . . . . . . 14 . Trap . | . . . . . . . . . . . Miscellaneous 20 | . . . . . . . . . 20 . Route ------- -11/Scrapyard -10/Materials (discovered 4 exits: [*Mat x3] / [*Min]) -10/Mines -10/Exiles -9/Mines -8/Materials -7/Factory (discovered 6 exits: *Fac / Sto x2 / *Low x2 / Gar) -7/Garrison (discovered 3 exits: *Fac x3) -6/Factory -6/Garrison (discovered 3 exits: *Fac x3) -6/Factory History --------- Turn | Location | Event 11 | -11/Scrapyard | Discovered new exit (range 16) 64 | -11/Scrapyard | Entered Materials 251 | -10/Materials | Discovered new exit (range 10) 331 | -10/Materials | Build established: Mutant 599 | -10/Materials | Discovered new exit (range 5) 754 | -10/Materials | Discovered new exit (range 5) 1017 | -10/Materials | Discovered new exit (range 15) 1107 | -10/Materials | Entered Mines 1145 | -10/Mines | Deemed a non-threat by the Exiles lab entrance 1145 | -10/Mines | Discovered new exit (range 5) 1149 | -10/Mines | Entered Exiles 1176 | -10/Exiles | Met 8R-AWN 1196 | -10/Exiles | Met EX-HEX 1225 | -10/Exiles | Met EX-BIN 1239 | -10/Exiles | Aligned with FarCom system 1240 | -10/Exiles | Given EX-Vault access code 1265 | -10/Exiles | Opened EX-Vault 1271 | -10/Exiles | Found YOLO Cannon 1293 | -10/Exiles | Warned to stay clear of 0b10 Research branches 1325 | -10/Exiles | Met EX-DEC 1332 | -10/Exiles | Learned location of Zion (-7) 1379 | -10/Exiles | Discovered new exit (range 14) 1393 | -10/Exiles | Left Exiles lab with YOLO Cannon 1393 | -10/Exiles | Entered Mines 1401 | -9/Mines | Met a Derelict bent on vengeance 1476 | -9/Mines | Discovered new exit (range 9) 1517 | -9/Mines | Entered Materials 1517 | -8/Materials | Evolved 4 slots: Propulsion x1, Utility x3 1807 | -8/Materials | Build established: Hauler-Mutant 2197 | -8/Materials | Lost 4 parts (1p3n) 2508 | -8/Materials | Lost 6 parts (1p2n1u2w) 2747 | -8/Materials | Core integrity fell below 50% 2794 | -8/Materials | Lost 6 parts (3n1u2w) 2800 | -8/Materials | Destroyed 11 combat bots 3075 | -8/Materials | Discovered new exit (range 12) 3348 | -8/Materials | Entered Factory 3348 | -7/Factory | Evolved 2 slots: Propulsion x1, Utility x1 3577 | -7/Factory | Identified exit to Storage 3577 | -7/Factory | Identified exit to Lower Caves 3830 | -7/Factory | Build established: Scavenger-Mutant 4288 | -7/Factory | Discovered new exit (range 6) 5013 | -7/Factory | Fabricated Hvy. Rocket Launcher (x1) 5120 | -7/Factory | Identified exit to Garrison 5120 | -7/Factory | Entered Garrison 5234 | -7/Garrison | Core integrity fell below 50% 5286 | -7/Garrison | Lost 8 parts (5n1u2w) 5478 | -7/Garrison | Build established: Hauler-Mutant 6008 | -7/Garrison | Phase Generator disabled 6055 | -7/Garrison | Garrison Relay disabled 6088 | -7/Garrison | Triggered checkpoint 6180 | -7/Garrison | Heavy support dispatched to Factory 6201 | -7/Garrison | Found Hvy. Insulated Plating 6274 | -7/Garrison | Core integrity fell below 20% 6638 | -7/Garrison | Heavy support dispatched to Factory 6720 | -7/Garrison | Triggered checkpoint 6759 | -7/Garrison | Discovered new exit (range 12) 6760 | -7/Garrison | Found embedded Infiltrators 7108 | -7/Garrison | Triggered checkpoint 7264 | -7/Garrison | Triggered checkpoint 7291 | -7/Garrison | Discovered new exit (range 15) 7687 | -7/Garrison | Garrison Relay disabled 7820 | -7/Garrison | Installed Relay Interface Framework 7924 | -7/Garrison | Triggered checkpoint 8092 | -7/Garrison | Discovered new exit (range 15) 8112 | -7/Garrison | Build established: Bothacker-Mutant 8196 | -7/Garrison | H-XX Assembler disabled 8666 | -7/Garrison | Entered Factory 8666 | -6/Factory | Accompanied by 1 ally 8666 | -6/Factory | Evolved 2 slots: Propulsion x1, Utility x1 9513 | -6/Factory | Garrison activated, responded to threat 9673 | -6/Factory | Identified exit to Garrison 9673 | -6/Factory | Entered Garrison 9702 | -6/Garrison | Expanded RIF knowledge: Coupler Efficiency 9763 | -6/Garrison | Phase Generator disabled 9954 | -6/Garrison | Garrison Relay disabled 10053 | -6/Garrison | Triggered checkpoint 10081 | -6/Garrison | Spotted B-75 Beast 10083 | -6/Garrison | Assimilated Beast 5a with formatsys_high 10089 | -6/Garrison | Triggered checkpoint 10094 | -6/Garrison | Triggered checkpoint 10098 | -6/Garrison | Triggered checkpoint 10146 | -6/Garrison | Lost 4 parts (1p1n1u1w) 10366 | -6/Garrison | Build established: Hauler-Mutant 10443 | -6/Garrison | Learned Factory security intel 10462 | -6/Garrison | Discovered new exit (range 10) 10599 | -6/Garrison | Triggered checkpoint 10636 | -6/Garrison | Garrison Relay disabled 10927 | -6/Garrison | Spotted B-75 Beast 10963 | -6/Garrison | Discovered new exit (range 4) 11016 | -6/Garrison | Build established: Bothacker-Mutant 11055 | -6/Garrison | Rescued a captive Derelict 11056 | -6/Garrison | Rescued a captive Derelict 11099 | -6/Garrison | Garrison Relay disabled 11176 | -6/Garrison | Spotted Executioner 11176 | -6/Garrison | Spotted Executioner 11205 | -6/Garrison | Core integrity fell below 50% 11235 | -6/Garrison | Core integrity fell below 20% 11235 | -6/Garrison | Destroyed Executioner 11239 | -6/Garrison | Destroyed Executioner 11262 | -6/Garrison | Lost 6 parts (3n1u2w) 12103 | -6/Garrison | Discovered new exit (range 8) 12253 | -6/Garrison | Triggered checkpoint 12694 | -6/Garrison | Build established: Scavenger-Mutant 12843 | -6/Garrison | Garrison Relay disabled 13108 | -6/Garrison | Assimilated Beast 5b with formatsys_high 13115 | -6/Garrison | Triggered checkpoint 13160 | -6/Garrison | Rewired B-86 Titan 13170 | -6/Garrison | Found Hvy. Reflective Plating 13183 | -6/Garrison | Rewired B-75 Beast 13591 | -6/Garrison | Entered Factory 13591 | -6/Factory | Accompanied by 2 allies 13941 | -6/Factory | First assault squad dispatched 14342 | -6/Factory | Destroyed by H-61 Shepherd with Heavy Assault Cannon Last Messages --------------- 14166_ System corrupted: IFF burst signal emitted. 14188_ System corrupted: Energy discharge (-122). 14195_ ALERT: Cargo convoy en route, clear transfer corridor. 14227_ System corrupted: Component data lost. 14241_ ALERT: Rogue bot located, Programmers report to Factory Zone 1U. 14246_ Jacked K-01 Serf... >>find_chute No applicable chute records found in memory. 14266_ System corrupted: Component data lost. 14287_ System corrupted: Heat flow error (+135). 14291_ ALERT: Significant disruption in Zone 8D, multiple assault carriers dispatched. 14300_ P-60 Hacker destroyed. 14333_ System corrupted: Energy discharge (-91). 14338_ K-01 Serf destroyed. [Achievement: Overachiever] Map ----- +----------------------------------------------------+ | #?????????????????????????????# #??????????????? | | #?????????????????????????????# #??????????????? | | #?????????????????????????????# #??????????????? | | #?????????????????????????????# #??????????????? | | #?????????????????????????????# #??????????????? | | #?????????????????????????????# #??????????????? | | #?????????????????????????????# #????#####??#??? | | #?????????????????????????????# #??? #??? | | #?????????????????????????????# #?? ! """ #??? | | ###???????????????????????#?????# #?# Y" #??? | | ??????????????????????????# ????# #?# """ #??? | | ??????????????????????????# ????# #?# """ #??? | | ??????????????????????????#* ???# #?# """ #??? | | ??????????????????????????# ???# #?? """ ???? | | ??????????????????????????# ??# #???? ?????? | | ??????????????????????????# ??# #?????#+#??????? | | ??????????????????????????# ?# #?????# #??##### | | ????????????????????####### ?# #?????# #?? | | ?????????????????# # # #????## ## | | ?????????????????# """ # # ###### # | | ?????????????????# """ # + + | | ?????????????????# """ # # ######!!*# | | ?????????????????# %#+##### ###??##%## | | ?????????????????# =# #?# #???#=#??##### | | ?????????????????# ]/ *%# ### #???# #??????? | | ?????????????????# ]* @/ #???# #??????? | | ?????????????????# ]* # ### / #???# #??????? | | ?????????????????########;# #?# #???# +??????? | | ???????????????????????? k #?#### ##???# #??????? | | ???????????????????????# #?????+#????# #??????? | | ???????????????????????# #???????????# #??????? | | ???????????????????????? #????????????g???????? | | ???????????????????????# #????????????g???????? | | ???????????????????????# #???????????? ???????? | | ???????????????????????# ????????????? ???????? | | ???????????????????????# ????????????? ???????? | | ???????????????????????# H #???????????? ???????? | | ???????????????????????# #???????????? ???????? | | ????????????????????????## ????????????????????? | | ?????????????????????????? ????????????????????? | | ?????????????????????????? ?????????????????????? | | ?????????????????????????????????????????????????? | | ?????????????????????????????????????????????????? | | ?????????????????????????????????????????????????? | | ?????????????????????????????????????????????????? | | ?????????????????????????????????????????????????? | | ?????????????????????????????????????????????????? | | ?????????????????????????????????????????????????? | | ?????????????????????????????????????????????????? | | ?????????????????????????????????????????????????? | +----------------------------------------------------+ Best States ------------- Heat Dissipation 68 Energy Generation 29 Energy Capacity 350 Matter Stores 300 Matter Capacity 300 Sight Range 16 Terrain Scan Density 10 Armor Coverage 750 Resistance: KI 20 Weapon Shielding 66 Evasion (%) 50 Targeting Accuracy 8 Recoil Reduction 5 Offensive Hacking 10 Defensive Hacking 10 Relay Coupler Types 1 Relay Coupler Value 34 Item Schematics ----------------- Hvy. Rocket Launcher | -7/Factory | Scanalyzed Robot Schematics ------------------ None Fabricated ------------ Hvy. Rocket Launcher | x1 | -7/Factory Alien Tech Used ----------------- None Achievements -------------- Overachiever Packrat Challenges ------------ None Game ------ Seed LightSupercompositeAnalyzer Manual? 0 Play Time 01:11:08 Cumulative 143.6 hours Start 2024.12.17 @ 11:02:24 End 2024.12.17 @ 12:26:39 Sessions 1 Manual Loads 0 Difficulty Rogue Special Mode None Game No. 177 Rogue 177 Adventurer 0 Explorer 0 Win Type - Total 3 Types 3/0/0/0/0/0/0/0/0 Lore% 67 Gallery% 58 Achievement% 50 Wizard Run 0 Options --------- Layout 1 ASCII 0 Keyboard 1 Movement Numpad Keybinds 0 Fullscreen 1 Font 24/Smallcaps Map View 50x35 Zoom Use 0% Tactical HUD 1 Map Filters NONE Filters NONE Steam 1 RUN: 82df05f6-4d40-4063-9f3f-472b7adeff02